{"text_format":"3","workbook":"xlsx","n_sheets":4,"sheets":["Dashboard","Preventivo","Installazione","dati del grafico"],"not_rendered":{"charts":2,"images":1,"defined_names":43},"read":"whole","date_system":"1900"}

{"sheet":"Dashboard","index":0,"n_rows":13,"n_cols":14,"rows_kept":13,"merged":[[2,0,4,2],[6,0,8,2],[10,0,12,2]]}
[{"$nulls":13},{"$f":"\"PREVENTIVO INTERATTIVO \"&NomePreventivo","v":"PREVENTIVO INTERATTIVO FAMIGLIA JOHNSON  2012"}]
[]
[{"$f":"'dati del grafico'!C38","v":{"v":4000,"d":"€ 4,000"}}]
[]
[{"$nulls":3},"entrate"]
[]
[{"$f":"'dati del grafico'!C39","v":{"v":5933,"d":"€ 5,933"}}]
[]
[{"$nulls":3},"spese"]
[]
[{"$f":"'dati del grafico'!D40& \"€ \"&'dati del grafico'!C40","v":"-€ 1933"}]
[]
[{"$nulls":3},"flusso di cassa"]

{"sheet":"Preventivo","index":1,"n_rows":131,"n_cols":16,"rows_kept":131,"merged":[[18,1,18,13],[27,1,27,13],[36,1,36,13],[45,1,45,13],[54,1,54,13],[61,1,61,13],[68,1,68,13],[75,1,75,13],[82,1,82,13],[89,1,89,13],[96,1,96,13],[103,1,103,13],[110,1,110,13],[117,1,117,13],[124,1,124,13]]}
[null,null,"Gen","Feb","Mar","Apr","Mag","Giu","Lug","Ago","Set","Ott","Nov","Dic","anno","avg"]
[]
[]
[]
[null,"Saldo iniziale",1000]
[null,"Totale entrate",{"$f":"SUM(tblReddito[Gen])","v":4222},{"$f":"SUM(tblReddito[Feb])","v":9033},{"$f":"SUM(tblReddito[Mar])","v":4000},{"$f":"SUM(tblReddito[Apr])","v":4045},{"$f":"SUM(tblReddito[Mag])","v":9000},{"$f":"SUM(tblReddito[Giu])","v":1525},{"$f":"SUM(tblReddito[Lug])","v":1500},{"$f":"SUM(tblReddito[Ago])","v":6500},{"$f":"SUM(tblReddito[Set])","v":4000},{"$f":"SUM(tblReddito[Ott])","v":4000},{"$f":"SUM(tblReddito[Nov])","v":9000},{"$f":"SUM(tblReddito[Dic])","v":4000},{"$f":"SUM(tblReddito[anno])","v":60825},{"$f":"O6/12","v":{"v":5068.75,"d":"5069"}}]
[null,"Totale spese",{"$f":"SUM(tblCategorieDiSpesa_01[Gen],tblCategorieDiSpesa_02[Gen],tblCategorieDiSpesa_03[Gen],tblCategorieDiSpesa_04[Gen],tblCategorieDiSpesa_05[Gen],tblCategorieDiSpesa_06[Gen],tblCategorieDiSpesa_07[Gen],tblCategorieDiSpesa_08[Gen],tblCategorieDiSpesa_09[Gen],tblCategorieDiSpesa_10[Gen],tblCategorieDiSpesa_11[Gen],tblCategorieDiSpesa_12[Gen],tblCategorieDiSpesa_13[Gen],tblCategorieDiSpesa_14[Gen],tblCategorieDiSpesa_15[Gen])","v":7936},{"$f":"SUM(tblCategorieDiSpesa_01[Feb],tblCategorieDiSpesa_02[Feb],tblCategorieDiSpesa_03[Feb],tblCategorieDiSpesa_04[Feb],tblCategorieDiSpesa_05[Feb],tblCategorieDiSpesa_06[Feb],tblCategorieDiSpesa_07[Feb],tblCategorieDiSpesa_08[Feb],tblCategorieDiSpesa_09[Feb],tblCategorieDiSpesa_10[Feb],tblCategorieDiSpesa_11[Feb],tblCategorieDiSpesa_12[Feb],tblCategorieDiSpesa_13[Feb],tblCategorieDiSpesa_14[Feb],tblCategorieDiSpesa_15[Feb])","v":5243},{"$f":"SUM(tblCategorieDiSpesa_01[Mar],tblCategorieDiSpesa_02[Mar],tblCategorieDiSpesa_03[Mar],tblCategorieDiSpesa_04[Mar],tblCategorieDiSpesa_05[Mar],tblCategorieDiSpesa_06[Mar],tblCategorieDiSpesa_07[Mar],tblCategorieDiSpesa_08[Mar],tblCategorieDiSpesa_09[Mar],tblCategorieDiSpesa_10[Mar],tblCategorieDiSpesa_11[Mar],tblCategorieDiSpesa_12[Mar],tblCategorieDiSpesa_13[Mar],tblCategorieDiSpesa_14[Mar],tblCategorieDiSpesa_15[Mar])","v":5933},{"$f":"SUM(tblCategorieDiSpesa_01[Apr],tblCategorieDiSpesa_02[Apr],tblCategorieDiSpesa_03[Apr],tblCategorieDiSpesa_04[Apr],tblCategorieDiSpesa_05[Apr],tblCategorieDiSpesa_06[Apr],tblCategorieDiSpesa_07[Apr],tblCategorieDiSpesa_08[Apr],tblCategorieDiSpesa_09[Apr],tblCategorieDiSpesa_10[Apr],tblCategorieDiSpesa_11[Apr],tblCategorieDiSpesa_12[Apr],tblCategorieDiSpesa_13[Apr],tblCategorieDiSpesa_14[Apr],tblCategorieDiSpesa_15[Apr])","v":5858},{"$f":"SUM(tblCategorieDiSpesa_01[Mag],tblCategorieDiSpesa_02[Mag],tblCategorieDiSpesa_03[Mag],tblCategorieDiSpesa_04[Mag],tblCategorieDiSpesa_05[Mag],tblCategorieDiSpesa_06[Mag],tblCategorieDiSpesa_07[Mag],tblCategorieDiSpesa_08[Mag],tblCategorieDiSpesa_09[Mag],tblCategorieDiSpesa_10[Mag],tblCategorieDiSpesa_11[Mag],tblCategorieDiSpesa_12[Mag],tblCategorieDiSpesa_13[Mag],tblCategorieDiSpesa_14[Mag],tblCategorieDiSpesa_15[Mag])","v":5468},{"$f":"SUM(tblCategorieDiSpesa_01[Giu],tblCategorieDiSpesa_02[Giu],tblCategorieDiSpesa_03[Giu],tblCategorieDiSpesa_04[Giu],tblCategorieDiSpesa_05[Giu],tblCategorieDiSpesa_06[Giu],tblCategorieDiSpesa_07[Giu],tblCategorieDiSpesa_08[Giu],tblCategorieDiSpesa_09[Giu],tblCategorieDiSpesa_10[Giu],tblCategorieDiSpesa_11[Giu],tblCategorieDiSpesa_12[Giu],tblCategorieDiSpesa_13[Giu],tblCategorieDiSpesa_14[Giu],tblCategorieDiSpesa_15[Giu])","v":5118},{"$f":"SUM(tblCategorieDiSpesa_01[Lug],tblCategorieDiSpesa_02[Lug],tblCategorieDiSpesa_03[Lug],tblCategorieDiSpesa_04[Lug],tblCategorieDiSpesa_05[Lug],tblCategorieDiSpesa_06[Lug],tblCategorieDiSpesa_07[Lug],tblCategorieDiSpesa_08[Lug],tblCategorieDiSpesa_09[Lug],tblCategorieDiSpesa_10[Lug],tblCategorieDiSpesa_11[Lug],tblCategorieDiSpesa_12[Lug],tblCategorieDiSpesa_13[Lug],tblCategorieDiSpesa_14[Lug],tblCategorieDiSpesa_15[Lug])","v":5743},{"$f":"SUM(tblCategorieDiSpesa_01[Ago],tblCategorieDiSpesa_02[Ago],tblCategorieDiSpesa_03[Ago],tblCategorieDiSpesa_04[Ago],tblCategorieDiSpesa_05[Ago],tblCategorieDiSpesa_06[Ago],tblCategorieDiSpesa_07[Ago],tblCategorieDiSpesa_08[Ago],tblCategorieDiSpesa_09[Ago],tblCategorieDiSpesa_10[Ago],tblCategorieDiSpesa_11[Ago],tblCategorieDiSpesa_12[Ago],tblCategorieDiSpesa_13[Ago],tblCategorieDiSpesa_14[Ago],tblCategorieDiSpesa_15[Ago])","v":5353},{"$f":"SUM(tblCategorieDiSpesa_01[Set],tblCategorieDiSpesa_02[Set],tblCategorieDiSpesa_03[Set],tblCategorieDiSpesa_04[Set],tblCategorieDiSpesa_05[Set],tblCategorieDiSpesa_06[Set],tblCategorieDiSpesa_07[Set],tblCategorieDiSpesa_08[Set],tblCategorieDiSpesa_09[Set],tblCategorieDiSpesa_10[Set],tblCategorieDiSpesa_11[Set],tblCategorieDiSpesa_12[Set],tblCategorieDiSpesa_13[Set],tblCategorieDiSpesa_14[Set],tblCategorieDiSpesa_15[Set])","v":5983},{"$f":"SUM(tblCategorieDiSpesa_01[Ott],tblCategorieDiSpesa_02[Ott],tblCategorieDiSpesa_03[Ott],tblCategorieDiSpesa_04[Ott],tblCategorieDiSpesa_05[Ott],tblCategorieDiSpesa_06[Ott],tblCategorieDiSpesa_07[Ott],tblCategorieDiSpesa_08[Ott],tblCategorieDiSpesa_09[Ott],tblCategorieDiSpesa_10[Ott],tblCategorieDiSpesa_11[Ott],tblCategorieDiSpesa_12[Ott],tblCategorieDiSpesa_13[Ott],tblCategorieDiSpesa_14[Ott],tblCategorieDiSpesa_15[Ott])","v":5943},{"$f":"SUM(tblCategorieDiSpesa_01[Nov],tblCategorieDiSpesa_02[Nov],tblCategorieDiSpesa_03[Nov],tblCategorieDiSpesa_04[Nov],tblCategorieDiSpesa_05[Nov],tblCategorieDiSpesa_06[Nov],tblCategorieDiSpesa_07[Nov],tblCategorieDiSpesa_08[Nov],tblCategorieDiSpesa_09[Nov],tblCategorieDiSpesa_10[Nov],tblCategorieDiSpesa_11[Nov],tblCategorieDiSpesa_12[Nov],tblCategorieDiSpesa_13[Nov],tblCategorieDiSpesa_14[Nov],tblCategorieDiSpesa_15[Nov])","v":5058},{"$f":"SUM(tblCategorieDiSpesa_01[Dic],tblCategorieDiSpesa_02[Dic],tblCategorieDiSpesa_03[Dic],tblCategorieDiSpesa_04[Dic],tblCategorieDiSpesa_05[Dic],tblCategorieDiSpesa_06[Dic],tblCategorieDiSpesa_07[Dic],tblCategorieDiSpesa_08[Dic],tblCategorieDiSpesa_09[Dic],tblCategorieDiSpesa_10[Dic],tblCategorieDiSpesa_11[Dic],tblCategorieDiSpesa_12[Dic],tblCategorieDiSpesa_13[Dic],tblCategorieDiSpesa_14[Dic],tblCategorieDiSpesa_15[Dic])","v":4958},{"$f":"SUM(tblCategorieDiSpesa_01[anno],tblCategorieDiSpesa_02[anno],tblCategorieDiSpesa_03[anno],tblCategorieDiSpesa_04[anno],tblCategorieDiSpesa_05[anno],tblCategorieDiSpesa_06[anno],tblCategorieDiSpesa_07[anno],tblCategorieDiSpesa_08[anno],tblCategorieDiSpesa_09[anno],tblCategorieDiSpesa_10[anno],tblCategorieDiSpesa_11[anno],tblCategorieDiSpesa_12[anno],tblCategorieDiSpesa_13[anno],tblCategorieDiSpesa_14[anno],tblCategorieDiSpesa_15[anno])","v":68594},{"$f":"O7/12","v":{"v":5716.166666666667,"d":"5716"}}]
[null,"Reddito netto",{"$f":"C6-C7","v":-3714},{"$f":"D6-D7","v":3790},{"$f":"E6-E7","v":-1933},-1813,3532,-3593,-4243,1147,-1983,-1943,3942,-958,-7769,{"$f":"O8/12","v":{"v":-647.4166666666666,"d":"-647"}}]
[null,"FLUSSO DI CASSA TOTALE",{"$f":"C5+C6-C7","v":-2714},{"$f":"C9+D6-D7","v":1076},{"$f":"D9+E6-E7","v":-857},-2670,862,-2731,-6974,-5827,-7810,-9753,-5811,-6769]
[]
[]
[null,"entrate"]
[null,"Stipendi e mance",4000,4000,4000,4000,4000,1000,1000,1000,4000,4000,4000,4000,{"$f":"SUM(tblReddito[[#This Row],[Gen]:[Dic]])","v":39000},{"$f":"tblReddito[[#This Row],[anno]]/12","v":3250}]
[null,"Interessi ricevuti",222,33,null,45,null,25,{"$nulls":6},{"$f":"SUM(tblReddito[[#This Row],[Gen]:[Dic]])","v":325},{"$f":"tblReddito[[#This Row],[anno]]/12","v":{"v":27.083333333333332,"d":"27"}}]
[null,"Dividendi",null,5000,null,null,5000,null,null,5000,null,null,5000,null,{"$f":"SUM(tblReddito[[#This Row],[Gen]:[Dic]])","v":20000},{"$f":"tblReddito[[#This Row],[anno]]/12","v":{"v":1666.6666666666667,"d":"1667"}}]
[null,"rimborsi",{"$nulls":5},500,500,500,{"$nulls":4},{"$f":"SUM(tblReddito[[#This Row],[Gen]:[Dic]])","v":1500},{"$f":"tblReddito[[#This Row],[anno]]/12","v":125}]
[null,"Altro",{"$nulls":12},{"$f":"SUM(tblReddito[[#This Row],[Gen]:[Dic]])","v":0},{"$f":"tblReddito[[#This Row],[anno]]/12","v":0}]
[null,"TOTALE ENTRATE",{"$f":"SUM(tblReddito[Gen])","v":4222},{"$f":"SUM(tblReddito[Feb])","v":9033},{"$f":"SUM(tblReddito[Mar])","v":4000},{"$f":"SUM(tblReddito[Apr])","v":4045},{"$f":"SUM(tblReddito[Mag])","v":9000},{"$f":"SUM(tblReddito[Giu])","v":1525},{"$f":"SUM(tblReddito[Lug])","v":1500},{"$f":"SUM(tblReddito[Ago])","v":6500},{"$f":"SUM(tblReddito[Set])","v":4000},{"$f":"SUM(tblReddito[Ott])","v":4000},{"$f":"SUM(tblReddito[Nov])","v":9000},{"$f":"SUM(tblReddito[Dic])","v":4000},{"$f":"SUM(tblReddito[anno])","v":60825},{"$f":"tblReddito[[#Totals],[anno]]/12","v":{"v":5068.75,"d":"5069"}}]
[]
[]
[null,"casa"]
[null,"Mutuo/Affitto",850,850,850,850,850,850,850,850,850,850,900,900,{"$f":"SUM(tblCategorieDiSpesa_01[[#This Row],[Gen]:[Dic]])","v":10300},{"$f":"tblCategorieDiSpesa_01[[#This Row],[anno]]/12","v":{"v":858.3333333333334,"d":"858"}}]
[null,"Elettricità",200,200,175,150,150,175,225,275,200,150,150,150,{"$f":"SUM(tblCategorieDiSpesa_01[[#This Row],[Gen]:[Dic]])","v":2200},{"$f":"tblCategorieDiSpesa_01[[#This Row],[anno]]/12","v":{"v":183.33333333333334,"d":"183"}}]
[null,"Telefono",50,50,100,100,50,50,100,100,50,50,50,50,{"$f":"SUM(tblCategorieDiSpesa_01[[#This Row],[Gen]:[Dic]])","v":800},{"$f":"tblCategorieDiSpesa_01[[#This Row],[anno]]/12","v":{"v":66.66666666666667,"d":"67"}}]
[null,"TV via cavo/satellite",69,69,69,69,69,69,69,69,69,69,69,69,{"$f":"SUM(tblCategorieDiSpesa_01[[#This Row],[Gen]:[Dic]])","v":828},{"$f":"tblCategorieDiSpesa_01[[#This Row],[anno]]/12","v":69}]
[null,"Internet",39,39,39,39,39,39,39,39,39,39,39,39,{"$f":"SUM(tblCategorieDiSpesa_01[[#This Row],[Gen]:[Dic]])","v":468},{"$f":"tblCategorieDiSpesa_01[[#This Row],[anno]]/12","v":39}]
[null,{"$f":"UPPER(\"Total \" & B21)","v":"TOTAL CASA"},{"$f":"SUM(tblCategorieDiSpesa_01[Gen])","v":1208},{"$f":"SUM(tblCategorieDiSpesa_01[Feb])","v":1208},{"$f":"SUM(tblCategorieDiSpesa_01[Mar])","v":1233},{"$f":"SUM(tblCategorieDiSpesa_01[Apr])","v":1208},{"$f":"SUM(tblCategorieDiSpesa_01[Mag])","v":1158},{"$f":"SUM(tblCategorieDiSpesa_01[Giu])","v":1183},{"$f":"SUM(tblCategorieDiSpesa_01[Lug])","v":1283},{"$f":"SUM(tblCategorieDiSpesa_01[Ago])","v":1333},{"$f":"SUM(tblCategorieDiSpesa_01[Set])","v":1208},{"$f":"SUM(tblCategorieDiSpesa_01[Ott])","v":1158},{"$f":"SUM(tblCategorieDiSpesa_01[Nov])","v":1208},{"$f":"SUM(tblCategorieDiSpesa_01[Dic])","v":1208},{"$f":"SUM(tblCategorieDiSpesa_01[anno])","v":14596},{"$f":"tblCategorieDiSpesa_01[[#Totals],[anno]]/12","v":{"v":1216.3333333333333,"d":"1216"}}]
[]
[]
[null,"spese quotidiane"]
[null,"Generi alimentari",345,250,200,400,350,250,400,350,250,400,350,250,{"$f":"SUM(tblCategorieDiSpesa_02[[#This Row],[Gen]:[Dic]])","v":3795},{"$f":"tblCategorieDiSpesa_02[[#This Row],[anno]]/12","v":{"v":316.25,"d":"316"}}]
[null,"Vestiario",300,null,null,300,null,null,300,null,null,300,null,null,{"$f":"SUM(tblCategorieDiSpesa_02[[#This Row],[Gen]:[Dic]])","v":1200},{"$f":"tblCategorieDiSpesa_02[[#This Row],[anno]]/12","v":100}]
[null,"Ristorante",125,125,300,125,125,200,125,125,125,125,125,125,{"$f":"SUM(tblCategorieDiSpesa_02[[#This Row],[Gen]:[Dic]])","v":1750},{"$f":"tblCategorieDiSpesa_02[[#This Row],[anno]]/12","v":{"v":145.83333333333334,"d":"146"}}]
[null,"Acconciature",25,null,50,null,25,null,50,null,25,null,100,null,{"$f":"SUM(tblCategorieDiSpesa_02[[#This Row],[Gen]:[Dic]])","v":275},{"$f":"tblCategorieDiSpesa_02[[#This Row],[anno]]/12","v":{"v":22.916666666666668,"d":"23"}}]
[null,"Altro",{"$nulls":12},{"$f":"SUM(tblCategorieDiSpesa_02[[#This Row],[Gen]:[Dic]])","v":0},{"$f":"tblCategorieDiSpesa_02[[#This Row],[anno]]/12","v":0}]
[null,{"$f":"UPPER(\"Total \" & B30)","v":"TOTAL SPESE QUOTIDIANE"},{"$f":"SUM(tblCategorieDiSpesa_02[Gen])","v":795},{"$f":"SUM(tblCategorieDiSpesa_02[Feb])","v":375},{"$f":"SUM(tblCategorieDiSpesa_02[Mar])","v":550},{"$f":"SUM(tblCategorieDiSpesa_02[Apr])","v":825},{"$f":"SUM(tblCategorieDiSpesa_02[Mag])","v":500},{"$f":"SUM(tblCategorieDiSpesa_02[Giu])","v":450},{"$f":"SUM(tblCategorieDiSpesa_02[Lug])","v":875},{"$f":"SUM(tblCategorieDiSpesa_02[Ago])","v":475},{"$f":"SUM(tblCategorieDiSpesa_02[Set])","v":400},{"$f":"SUM(tblCategorieDiSpesa_02[Ott])","v":825},{"$f":"SUM(tblCategorieDiSpesa_02[Nov])","v":575},{"$f":"SUM(tblCategorieDiSpesa_02[Dic])","v":375},{"$f":"SUM(tblCategorieDiSpesa_02[anno])","v":7020},{"$f":"tblCategorieDiSpesa_02[[#Totals],[anno]]/12","v":585}]
[]
[]
[null,"figli"]
[null,"Cancelleria",123,null,100,{"$nulls":4},345,{"$nulls":4},{"$f":"SUM(tblCategorieDiSpesa_03[[#This Row],[Gen]:[Dic]])","v":568},{"$f":"tblCategorieDiSpesa_03[[#This Row],[anno]]/12","v":{"v":47.333333333333336,"d":"47"}}]
[null,"Vestiario",null,100,null,null,100,{"$nulls":3},100,null,null,100,{"$f":"SUM(tblCategorieDiSpesa_03[[#This Row],[Gen]:[Dic]])","v":400},{"$f":"tblCategorieDiSpesa_03[[#This Row],[anno]]/12","v":{"v":33.333333333333336,"d":"33"}}]
[null,"Pranzi scolastici",50,50,50,50,50,50,null,null,50,50,50,50,{"$f":"SUM(tblCategorieDiSpesa_03[[#This Row],[Gen]:[Dic]])","v":500},{"$f":"tblCategorieDiSpesa_03[[#This Row],[anno]]/12","v":{"v":41.666666666666664,"d":"42"}}]
[null,"Spese medicho",200,200,200,200,200,200,200,200,200,200,200,200,{"$f":"SUM(tblCategorieDiSpesa_03[[#This Row],[Gen]:[Dic]])","v":2400},{"$f":"tblCategorieDiSpesa_03[[#This Row],[anno]]/12","v":200}]
[null,"Altro",2000,150,{"$nulls":3},200,{"$nulls":3},100,null,null,{"$f":"SUM(tblCategorieDiSpesa_03[[#This Row],[Gen]:[Dic]])","v":2450},{"$f":"tblCategorieDiSpesa_03[[#This Row],[anno]]/12","v":{"v":204.16666666666666,"d":"204"}}]
[null,{"$f":"UPPER(\"Total \" & B39)","v":"TOTAL FIGLI"},{"$f":"SUM(tblCategorieDiSpesa_03[Gen])","v":2373},{"$f":"SUM(tblCategorieDiSpesa_03[Feb])","v":500},{"$f":"SUM(tblCategorieDiSpesa_03[Mar])","v":350},{"$f":"SUM(tblCategorieDiSpesa_03[Apr])","v":250},{"$f":"SUM(tblCategorieDiSpesa_03[Mag])","v":350},{"$f":"SUM(tblCategorieDiSpesa_03[Giu])","v":450},{"$f":"SUM(tblCategorieDiSpesa_03[Lug])","v":200},{"$f":"SUM(tblCategorieDiSpesa_03[Ago])","v":545},{"$f":"SUM(tblCategorieDiSpesa_03[Set])","v":350},{"$f":"SUM(tblCategorieDiSpesa_03[Ott])","v":350},{"$f":"SUM(tblCategorieDiSpesa_03[Nov])","v":250},{"$f":"SUM(tblCategorieDiSpesa_03[Dic])","v":350},{"$f":"SUM(tblCategorieDiSpesa_03[anno])","v":6318},{"$f":"tblCategorieDiSpesa_03[[#Totals],[anno]]/12","v":{"v":526.5,"d":"527"}}]
[]
[]
[null,"trasporto"]
[null,"Pagamenti veicolo",600,600,600,600,600,600,600,600,600,600,600,600,{"$f":"SUM(tblCategorieDiSpesa_04[[#This Row],[Gen]:[Dic]])","v":7200},{"$f":"tblCategorieDiSpesa_04[[#This Row],[anno]]/12","v":600}]
[null,"Carburante",325,325,325,325,325,500,500,500,325,325,325,325,{"$f":"SUM(tblCategorieDiSpesa_04[[#This Row],[Gen]:[Dic]])","v":4425},{"$f":"tblCategorieDiSpesa_04[[#This Row],[anno]]/12","v":{"v":368.75,"d":"369"}}]
[null,"Riparazioni",null,100,null,100,null,100,null,100,null,100,null,null,{"$f":"SUM(tblCategorieDiSpesa_04[[#This Row],[Gen]:[Dic]])","v":500},{"$f":"tblCategorieDiSpesa_04[[#This Row],[anno]]/12","v":{"v":41.666666666666664,"d":"42"}}]
[null,"Registrazione/Licenza",185,{"$nulls":7},225,{"$nulls":3},{"$f":"SUM(tblCategorieDiSpesa_04[[#This Row],[Gen]:[Dic]])","v":410},{"$f":"tblCategorieDiSpesa_04[[#This Row],[anno]]/12","v":{"v":34.166666666666664,"d":"34"}}]
[null,"Altro",{"$nulls":4},400,{"$nulls":7},{"$f":"SUM(tblCategorieDiSpesa_04[[#This Row],[Gen]:[Dic]])","v":400},{"$f":"tblCategorieDiSpesa_04[[#This Row],[anno]]/12","v":{"v":33.333333333333336,"d":"33"}}]
[null,{"$f":"UPPER(\"Total \" & B48)","v":"TOTAL TRASPORTO"},{"$f":"SUM(tblCategorieDiSpesa_04[Gen])","v":1110},{"$f":"SUM(tblCategorieDiSpesa_04[Feb])","v":1025},{"$f":"SUM(tblCategorieDiSpesa_04[Mar])","v":925},{"$f":"SUM(tblCategorieDiSpesa_04[Apr])","v":1025},{"$f":"SUM(tblCategorieDiSpesa_04[Mag])","v":1325},{"$f":"SUM(tblCategorieDiSpesa_04[Giu])","v":1200},{"$f":"SUM(tblCategorieDiSpesa_04[Lug])","v":1100},{"$f":"SUM(tblCategorieDiSpesa_04[Ago])","v":1200},{"$f":"SUM(tblCategorieDiSpesa_04[Set])","v":1150},{"$f":"SUM(tblCategorieDiSpesa_04[Ott])","v":1025},{"$f":"SUM(tblCategorieDiSpesa_04[Nov])","v":925},{"$f":"SUM(tblCategorieDiSpesa_04[Dic])","v":925},{"$f":"SUM(tblCategorieDiSpesa_04[anno])","v":12935},{"$f":"tblCategorieDiSpesa_04[[#Totals],[anno]]/12","v":{"v":1077.9166666666667,"d":"1078"}}]
[]
[]
[null,"salute"]
[null,"Dottore/Dentista",null,35,null,null,35,35,35,null,null,35,null,null,{"$f":"SUM(tblCategorieDiSpesa_05[[#This Row],[Gen]:[Dic]])","v":175},{"$f":"tblCategorieDiSpesa_05[[#This Row],[anno]]/12","v":{"v":14.583333333333334,"d":"15"}}]
[null,"Medicinali",25,25,25,25,25,25,25,25,25,25,25,25,{"$f":"SUM(tblCategorieDiSpesa_05[[#This Row],[Gen]:[Dic]])","v":300},{"$f":"tblCategorieDiSpesa_05[[#This Row],[anno]]/12","v":25}]
[null,"Altro",null,null,150,{"$nulls":5},150,{"$nulls":3},{"$f":"SUM(tblCategorieDiSpesa_05[[#This Row],[Gen]:[Dic]])","v":300},{"$f":"tblCategorieDiSpesa_05[[#This Row],[anno]]/12","v":25}]
[null,{"$f":"UPPER(\"Total \" & B57)","v":"TOTAL SALUTE"},{"$f":"SUM(tblCategorieDiSpesa_05[Gen])","v":25},{"$f":"SUM(tblCategorieDiSpesa_05[Feb])","v":60},{"$f":"SUM(tblCategorieDiSpesa_05[Mar])","v":175},{"$f":"SUM(tblCategorieDiSpesa_05[Apr])","v":25},{"$f":"SUM(tblCategorieDiSpesa_05[Mag])","v":60},{"$f":"SUM(tblCategorieDiSpesa_05[Giu])","v":60},{"$f":"SUM(tblCategorieDiSpesa_05[Lug])","v":60},{"$f":"SUM(tblCategorieDiSpesa_05[Ago])","v":25},{"$f":"SUM(tblCategorieDiSpesa_05[Set])","v":175},{"$f":"SUM(tblCategorieDiSpesa_05[Ott])","v":60},{"$f":"SUM(tblCategorieDiSpesa_05[Nov])","v":25},{"$f":"SUM(tblCategorieDiSpesa_05[Dic])","v":25},{"$f":"SUM(tblCategorieDiSpesa_05[anno])","v":775},{"$f":"tblCategorieDiSpesa_05[[#Totals],[anno]]/12","v":{"v":64.58333333333333,"d":"65"}}]
[]
[]
[null,"assicurazione"]
[null,"Auto",150,150,150,150,150,150,150,150,150,150,150,150,{"$f":"SUM(tblCategorieDiSpesa_06[[#This Row],[Gen]:[Dic]])","v":1800},{"$f":"tblCategorieDiSpesa_06[[#This Row],[anno]]/12","v":150}]
[null,"Salute",675,675,675,675,675,675,675,675,675,675,675,675,{"$f":"SUM(tblCategorieDiSpesa_06[[#This Row],[Gen]:[Dic]])","v":8100},{"$f":"tblCategorieDiSpesa_06[[#This Row],[anno]]/12","v":675}]
[null,"Vita",150,150,150,150,150,150,150,150,150,150,150,150,{"$f":"SUM(tblCategorieDiSpesa_06[[#This Row],[Gen]:[Dic]])","v":1800},{"$f":"tblCategorieDiSpesa_06[[#This Row],[anno]]/12","v":150}]
[null,{"$f":"UPPER(\"Total \" & B64)","v":"TOTAL ASSICURAZIONE"},{"$f":"SUM(tblCategorieDiSpesa_06[Gen])","v":975},{"$f":"SUM(tblCategorieDiSpesa_06[Feb])","v":975},{"$f":"SUM(tblCategorieDiSpesa_06[Mar])","v":975},{"$f":"SUM(tblCategorieDiSpesa_06[Apr])","v":975},{"$f":"SUM(tblCategorieDiSpesa_06[Mag])","v":975},{"$f":"SUM(tblCategorieDiSpesa_06[Giu])","v":975},{"$f":"SUM(tblCategorieDiSpesa_06[Lug])","v":975},{"$f":"SUM(tblCategorieDiSpesa_06[Ago])","v":975},{"$f":"SUM(tblCategorieDiSpesa_06[Set])","v":975},{"$f":"SUM(tblCategorieDiSpesa_06[Ott])","v":975},{"$f":"SUM(tblCategorieDiSpesa_06[Nov])","v":975},{"$f":"SUM(tblCategorieDiSpesa_06[Dic])","v":975},{"$f":"SUM(tblCategorieDiSpesa_06[anno])","v":11700},{"$f":"tblCategorieDiSpesa_06[[#Totals],[anno]]/12","v":975}]
[]
[]
[null,"istruzione"]
[null,"Ripetizioni",null,null,400,{"$nulls":5},400,{"$nulls":3},{"$f":"SUM(tblCategorieDiSpesa_07[[#This Row],[Gen]:[Dic]])","v":800},{"$f":"tblCategorieDiSpesa_07[[#This Row],[anno]]/12","v":{"v":66.66666666666667,"d":"67"}}]
[null,"Libri",null,null,225,{"$nulls":5},225,{"$nulls":3},{"$f":"SUM(tblCategorieDiSpesa_07[[#This Row],[Gen]:[Dic]])","v":450},{"$f":"tblCategorieDiSpesa_07[[#This Row],[anno]]/12","v":{"v":37.5,"d":"38"}}]
[null,"Altro",{"$nulls":12},{"$f":"SUM(tblCategorieDiSpesa_07[[#This Row],[Gen]:[Dic]])","v":0},{"$f":"tblCategorieDiSpesa_07[[#This Row],[anno]]/12","v":0}]
[null,{"$f":"UPPER(\"Total \" & B71)","v":"TOTAL ISTRUZIONE"},{"$f":"SUM(tblCategorieDiSpesa_07[Gen])","v":0},{"$f":"SUM(tblCategorieDiSpesa_07[Feb])","v":0},{"$f":"SUM(tblCategorieDiSpesa_07[Mar])","v":625},{"$f":"SUM(tblCategorieDiSpesa_07[Apr])","v":0},{"$f":"SUM(tblCategorieDiSpesa_07[Mag])","v":0},{"$f":"SUM(tblCategorieDiSpesa_07[Giu])","v":0},{"$f":"SUM(tblCategorieDiSpesa_07[Lug])","v":0},{"$f":"SUM(tblCategorieDiSpesa_07[Ago])","v":0},{"$f":"SUM(tblCategorieDiSpesa_07[Set])","v":625},{"$f":"SUM(tblCategorieDiSpesa_07[Ott])","v":0},{"$f":"SUM(tblCategorieDiSpesa_07[Nov])","v":0},{"$f":"SUM(tblCategorieDiSpesa_07[Dic])","v":0},{"$f":"SUM(tblCategorieDiSpesa_07[anno])","v":1250},{"$f":"tblCategorieDiSpesa_07[[#Totals],[anno]]/12","v":{"v":104.16666666666667,"d":"104"}}]
[]
[]
[null,"beneficenza"]
[null,"Regali acquistati",null,100,{"$nulls":3},100,{"$nulls":3},100,null,null,{"$f":"SUM(tblCategorieDiSpesa_08[[#This Row],[Gen]:[Dic]])","v":300},{"$f":"tblCategorieDiSpesa_08[[#This Row],[anno]]/12","v":25}]
[null,"Donazioni in beneficenza",null,null,100,null,100,null,100,null,100,null,100,null,{"$f":"SUM(tblCategorieDiSpesa_08[[#This Row],[Gen]:[Dic]])","v":500},{"$f":"tblCategorieDiSpesa_08[[#This Row],[anno]]/12","v":{"v":41.666666666666664,"d":"42"}}]
[null,"Altro",{"$nulls":3},100,{"$nulls":3},100,{"$nulls":3},100,{"$f":"SUM(tblCategorieDiSpesa_08[[#This Row],[Gen]:[Dic]])","v":300},{"$f":"tblCategorieDiSpesa_08[[#This Row],[anno]]/12","v":25}]
[null,{"$f":"UPPER(\"Total \" & B78)","v":"TOTAL BENEFICENZA"},{"$f":"SUM(tblCategorieDiSpesa_08[Gen])","v":0},{"$f":"SUM(tblCategorieDiSpesa_08[Feb])","v":100},{"$f":"SUM(tblCategorieDiSpesa_08[Mar])","v":100},{"$f":"SUM(tblCategorieDiSpesa_08[Apr])","v":100},{"$f":"SUM(tblCategorieDiSpesa_08[Mag])","v":100},{"$f":"SUM(tblCategorieDiSpesa_08[Giu])","v":100},{"$f":"SUM(tblCategorieDiSpesa_08[Lug])","v":100},{"$f":"SUM(tblCategorieDiSpesa_08[Ago])","v":100},{"$f":"SUM(tblCategorieDiSpesa_08[Set])","v":100},{"$f":"SUM(tblCategorieDiSpesa_08[Ott])","v":100},{"$f":"SUM(tblCategorieDiSpesa_08[Nov])","v":100},{"$f":"SUM(tblCategorieDiSpesa_08[Dic])","v":100},{"$f":"SUM(tblCategorieDiSpesa_08[anno])","v":1100},{"$f":"tblCategorieDiSpesa_08[[#Totals],[anno]]/12","v":{"v":91.66666666666667,"d":"92"}}]
[]
[]
[null,"risparmi"]
[null,"Fondo di emergenza",100,100,100,100,100,{"$nulls":3},100,100,100,100,{"$f":"SUM(tblCategorieDiSpesa_09[[#This Row],[Gen]:[Dic]])","v":900},{"$f":"tblCategorieDiSpesa_09[[#This Row],[anno]]/12","v":75}]
[null,"Pensione (401k, IRA)",500,500,500,500,500,500,500,500,500,500,500,500,{"$f":"SUM(tblCategorieDiSpesa_09[[#This Row],[Gen]:[Dic]])","v":6000},{"$f":"tblCategorieDiSpesa_09[[#This Row],[anno]]/12","v":500}]
[null,"Trasferimenti al fondo risparmi",200,200,200,200,200,{"$nulls":3},200,200,200,200,{"$f":"SUM(tblCategorieDiSpesa_09[[#This Row],[Gen]:[Dic]])","v":1800},{"$f":"tblCategorieDiSpesa_09[[#This Row],[anno]]/12","v":150}]
[null,{"$f":"UPPER(\"Total \" & B85)","v":"TOTAL RISPARMI"},{"$f":"SUM(tblCategorieDiSpesa_09[Gen])","v":800},{"$f":"SUM(tblCategorieDiSpesa_09[Feb])","v":800},{"$f":"SUM(tblCategorieDiSpesa_09[Mar])","v":800},{"$f":"SUM(tblCategorieDiSpesa_09[Apr])","v":800},{"$f":"SUM(tblCategorieDiSpesa_09[Mag])","v":800},{"$f":"SUM(tblCategorieDiSpesa_09[Giu])","v":500},{"$f":"SUM(tblCategorieDiSpesa_09[Lug])","v":500},{"$f":"SUM(tblCategorieDiSpesa_09[Ago])","v":500},{"$f":"SUM(tblCategorieDiSpesa_09[Set])","v":800},{"$f":"SUM(tblCategorieDiSpesa_09[Ott])","v":800},{"$f":"SUM(tblCategorieDiSpesa_09[Nov])","v":800},{"$f":"SUM(tblCategorieDiSpesa_09[Dic])","v":800},{"$f":"SUM(tblCategorieDiSpesa_09[anno])","v":8700},{"$f":"tblCategorieDiSpesa_09[[#Totals],[anno]]/12","v":725}]
[]
[]
[null,"azioni"]
[null,"Carta di credito 1",145,145,145,145,145,145,145,145,145,145,145,145,{"$f":"SUM(tblCategorieDiSpesa_10[[#This Row],[Gen]:[Dic]])","v":1740},{"$f":"tblCategorieDiSpesa_10[[#This Row],[anno]]/12","v":145}]
[null,"Tasse federali",450,null,null,450,null,null,450,null,null,450,null,null,{"$f":"SUM(tblCategorieDiSpesa_10[[#This Row],[Gen]:[Dic]])","v":1800},{"$f":"tblCategorieDiSpesa_10[[#This Row],[anno]]/12","v":150}]
[null,"Prestiti studenteschi",55,55,55,55,55,55,55,55,55,55,55,55,{"$f":"SUM(tblCategorieDiSpesa_10[[#This Row],[Gen]:[Dic]])","v":660},{"$f":"tblCategorieDiSpesa_10[[#This Row],[anno]]/12","v":55}]
[null,{"$f":"UPPER(\"Total \" & B92)","v":"TOTAL AZIONI"},{"$f":"SUM(tblCategorieDiSpesa_10[Gen])","v":650},{"$f":"SUM(tblCategorieDiSpesa_10[Feb])","v":200},{"$f":"SUM(tblCategorieDiSpesa_10[Mar])","v":200},{"$f":"SUM(tblCategorieDiSpesa_10[Apr])","v":650},{"$f":"SUM(tblCategorieDiSpesa_10[Mag])","v":200},{"$f":"SUM(tblCategorieDiSpesa_10[Giu])","v":200},{"$f":"SUM(tblCategorieDiSpesa_10[Lug])","v":650},{"$f":"SUM(tblCategorieDiSpesa_10[Ago])","v":200},{"$f":"SUM(tblCategorieDiSpesa_10[Set])","v":200},{"$f":"SUM(tblCategorieDiSpesa_10[Ott])","v":650},{"$f":"SUM(tblCategorieDiSpesa_10[Nov])","v":200},{"$f":"SUM(tblCategorieDiSpesa_10[Dic])","v":200},{"$f":"SUM(tblCategorieDiSpesa_10[anno])","v":4200},{"$f":"tblCategorieDiSpesa_10[[#Totals],[anno]]/12","v":350}]
[]
[]
[null," "]
[{"$nulls":14},{"$f":"SUM(tblCategorieDiSpesa_11[[#This Row],[Gen]:[Dic]])","v":0},{"$f":"tblCategorieDiSpesa_11[[#This Row],[anno]]/12","v":0}]
[{"$nulls":14},{"$f":"SUM(tblCategorieDiSpesa_11[[#This Row],[Gen]:[Dic]])","v":0},{"$f":"tblCategorieDiSpesa_11[[#This Row],[anno]]/12","v":0}]
[{"$nulls":14},{"$f":"SUM(tblCategorieDiSpesa_11[[#This Row],[Gen]:[Dic]])","v":0},{"$f":"tblCategorieDiSpesa_11[[#This Row],[anno]]/12","v":0}]
[null,{"$f":"UPPER(\"Total \" & B99)","v":"TOTAL  "},{"$f":"SUM(tblCategorieDiSpesa_11[Gen])","v":0},{"$f":"SUM(tblCategorieDiSpesa_11[Feb])","v":0},{"$f":"SUM(tblCategorieDiSpesa_11[Mar])","v":0},{"$f":"SUM(tblCategorieDiSpesa_11[Apr])","v":0},{"$f":"SUM(tblCategorieDiSpesa_11[Mag])","v":0},{"$f":"SUM(tblCategorieDiSpesa_11[Giu])","v":0},{"$f":"SUM(tblCategorieDiSpesa_11[Lug])","v":0},{"$f":"SUM(tblCategorieDiSpesa_11[Ago])","v":0},{"$f":"SUM(tblCategorieDiSpesa_11[Set])","v":0},{"$f":"SUM(tblCategorieDiSpesa_11[Ott])","v":0},{"$f":"SUM(tblCategorieDiSpesa_11[Nov])","v":0},{"$f":"SUM(tblCategorieDiSpesa_11[Dic])","v":0},{"$f":"SUM(tblCategorieDiSpesa_11[anno])","v":0},{"$f":"tblCategorieDiSpesa_11[[#Totals],[anno]]/12","v":0}]
[]
[]
[null," "]
[{"$nulls":14},{"$f":"SUM(tblCategorieDiSpesa_12[[#This Row],[Gen]:[Dic]])","v":0},{"$f":"tblCategorieDiSpesa_12[[#This Row],[anno]]/12","v":0}]
[{"$nulls":14},{"$f":"SUM(tblCategorieDiSpesa_12[[#This Row],[Gen]:[Dic]])","v":0},{"$f":"tblCategorieDiSpesa_12[[#This Row],[anno]]/12","v":0}]
[{"$nulls":14},{"$f":"SUM(tblCategorieDiSpesa_12[[#This Row],[Gen]:[Dic]])","v":0},{"$f":"tblCategorieDiSpesa_12[[#This Row],[anno]]/12","v":0}]
[null,{"$f":"UPPER(\"Total \" & B99)","v":"TOTAL  "},{"$f":"SUM(tblCategorieDiSpesa_12[Gen])","v":0},{"$f":"SUM(tblCategorieDiSpesa_12[Feb])","v":0},{"$f":"SUM(tblCategorieDiSpesa_12[Mar])","v":0},{"$f":"SUM(tblCategorieDiSpesa_12[Apr])","v":0},{"$f":"SUM(tblCategorieDiSpesa_12[Mag])","v":0},{"$f":"SUM(tblCategorieDiSpesa_12[Giu])","v":0},{"$f":"SUM(tblCategorieDiSpesa_12[Lug])","v":0},{"$f":"SUM(tblCategorieDiSpesa_12[Ago])","v":0},{"$f":"SUM(tblCategorieDiSpesa_12[Set])","v":0},{"$f":"SUM(tblCategorieDiSpesa_12[Ott])","v":0},{"$f":"SUM(tblCategorieDiSpesa_12[Nov])","v":0},{"$f":"SUM(tblCategorieDiSpesa_12[Dic])","v":0},{"$f":"SUM(tblCategorieDiSpesa_12[anno])","v":0},{"$f":"tblCategorieDiSpesa_12[[#Totals],[anno]]/12","v":0}]
[]
[]
[null," "]
[{"$nulls":14},{"$f":"SUM(tblCategorieDiSpesa_13[[#This Row],[Gen]:[Dic]])","v":0},{"$f":"tblCategorieDiSpesa_13[[#This Row],[anno]]/12","v":0}]
[{"$nulls":14},{"$f":"SUM(tblCategorieDiSpesa_13[[#This Row],[Gen]:[Dic]])","v":0},{"$f":"tblCategorieDiSpesa_13[[#This Row],[anno]]/12","v":0}]
[{"$nulls":14},{"$f":"SUM(tblCategorieDiSpesa_13[[#This Row],[Gen]:[Dic]])","v":0},{"$f":"tblCategorieDiSpesa_13[[#This Row],[anno]]/12","v":0}]
[null,{"$f":"UPPER(\"Total \" & B113)","v":"TOTAL  "},{"$f":"SUM(tblCategorieDiSpesa_13[Gen])","v":0},{"$f":"SUM(tblCategorieDiSpesa_13[Feb])","v":0},{"$f":"SUM(tblCategorieDiSpesa_13[Mar])","v":0},{"$f":"SUM(tblCategorieDiSpesa_13[Apr])","v":0},{"$f":"SUM(tblCategorieDiSpesa_13[Mag])","v":0},{"$f":"SUM(tblCategorieDiSpesa_13[Giu])","v":0},{"$f":"SUM(tblCategorieDiSpesa_13[Lug])","v":0},{"$f":"SUM(tblCategorieDiSpesa_13[Ago])","v":0},{"$f":"SUM(tblCategorieDiSpesa_13[Set])","v":0},{"$f":"SUM(tblCategorieDiSpesa_13[Ott])","v":0},{"$f":"SUM(tblCategorieDiSpesa_13[Nov])","v":0},{"$f":"SUM(tblCategorieDiSpesa_13[Dic])","v":0},{"$f":"SUM(tblCategorieDiSpesa_13[anno])","v":0},{"$f":"tblCategorieDiSpesa_13[[#Totals],[anno]]/12","v":0}]
[]
[]
[null," "]
[{"$nulls":14},{"$f":"SUM(tblCategorieDiSpesa_14[[#This Row],[Gen]:[Dic]])","v":0},{"$f":"tblCategorieDiSpesa_14[[#This Row],[anno]]/12","v":0}]
[{"$nulls":14},{"$f":"SUM(tblCategorieDiSpesa_14[[#This Row],[Gen]:[Dic]])","v":0},{"$f":"tblCategorieDiSpesa_14[[#This Row],[anno]]/12","v":0}]
[{"$nulls":14},{"$f":"SUM(tblCategorieDiSpesa_14[[#This Row],[Gen]:[Dic]])","v":0},{"$f":"tblCategorieDiSpesa_14[[#This Row],[anno]]/12","v":0}]
[null,{"$f":"UPPER(\"Total \" & B113)","v":"TOTAL  "},{"$f":"SUM(tblCategorieDiSpesa_14[Gen])","v":0},{"$f":"SUM(tblCategorieDiSpesa_14[Feb])","v":0},{"$f":"SUM(tblCategorieDiSpesa_14[Mar])","v":0},{"$f":"SUM(tblCategorieDiSpesa_14[Apr])","v":0},{"$f":"SUM(tblCategorieDiSpesa_14[Mag])","v":0},{"$f":"SUM(tblCategorieDiSpesa_14[Giu])","v":0},{"$f":"SUM(tblCategorieDiSpesa_14[Lug])","v":0},{"$f":"SUM(tblCategorieDiSpesa_14[Ago])","v":0},{"$f":"SUM(tblCategorieDiSpesa_14[Set])","v":0},{"$f":"SUM(tblCategorieDiSpesa_14[Ott])","v":0},{"$f":"SUM(tblCategorieDiSpesa_14[Nov])","v":0},{"$f":"SUM(tblCategorieDiSpesa_14[Dic])","v":0},{"$f":"SUM(tblCategorieDiSpesa_14[anno])","v":0},{"$f":"tblCategorieDiSpesa_14[[#Totals],[anno]]/12","v":0}]
[]
[]
[null," "]
[{"$nulls":14},{"$f":"SUM(tblCategorieDiSpesa_15[[#This Row],[Gen]:[Dic]])","v":0},{"$f":"tblCategorieDiSpesa_15[[#This Row],[anno]]/12","v":0}]
[{"$nulls":14},{"$f":"SUM(tblCategorieDiSpesa_15[[#This Row],[Gen]:[Dic]])","v":0},{"$f":"tblCategorieDiSpesa_15[[#This Row],[anno]]/12","v":0}]
[{"$nulls":14},{"$f":"SUM(tblCategorieDiSpesa_15[[#This Row],[Gen]:[Dic]])","v":0},{"$f":"tblCategorieDiSpesa_15[[#This Row],[anno]]/12","v":0}]
[null,{"$f":"UPPER(\"Total \" & B113)","v":"TOTAL  "},{"$f":"SUM(tblCategorieDiSpesa_15[Gen])","v":0},{"$f":"SUM(tblCategorieDiSpesa_15[Feb])","v":0},{"$f":"SUM(tblCategorieDiSpesa_15[Mar])","v":0},{"$f":"SUM(tblCategorieDiSpesa_15[Apr])","v":0},{"$f":"SUM(tblCategorieDiSpesa_15[Mag])","v":0},{"$f":"SUM(tblCategorieDiSpesa_15[Giu])","v":0},{"$f":"SUM(tblCategorieDiSpesa_15[Lug])","v":0},{"$f":"SUM(tblCategorieDiSpesa_15[Ago])","v":0},{"$f":"SUM(tblCategorieDiSpesa_15[Set])","v":0},{"$f":"SUM(tblCategorieDiSpesa_15[Ott])","v":0},{"$f":"SUM(tblCategorieDiSpesa_15[Nov])","v":0},{"$f":"SUM(tblCategorieDiSpesa_15[Dic])","v":0},{"$f":"SUM(tblCategorieDiSpesa_15[anno])","v":0},{"$f":"tblCategorieDiSpesa_15[[#Totals],[anno]]/12","v":0}]

{"sheet":"Installazione","index":2,"n_rows":59,"n_cols":10,"rows_kept":59}
[null,"FAMIGLIA JOHNSON  2012"]
[null,"entrate",null,"spese"]
[null,"Stipendi e mance",null," "]
[null,"interessi ricevuti",null,"casa",null,"casa",null,"spese quotidiane",null,"figli"]
[null,"dividendi",null,"spese quotidiane",null,"mutuo/affitto",null,"generi alimentari",null,"spese medicho"]
[null,"regali ricevuti",null,"figli",null,"elettricità",null,"articoli personali",null,"vestiario"]
[null,"rimborsi",null,"trasporto",null,"benzina/gas",null,"vestiario",null,"spese scolastiche"]
[null,"trasferimenti dal fondo risparmi",null,"salute",null,"acqua/fognature/immondizia",null,"servizi di pulizia",null,"pranzi scolastici"]
[null,"altro",null,"assicurazione",null,"telefono",null,"ristorante",null,"cancelleria"]
[{"$nulls":3},"istruzione",null,"TV via cavo/satellite",null,"lavanderia",null,"babysitter"]
[{"$nulls":3},"beneficenza",null,"internet",null,"acconciature",null,"giocattoli"]
[{"$nulls":3},"risparmi",null,"mobili ed elettrodomestici",null,"altro",null,"altro"]
[{"$nulls":3},"azioni",null,"giardino"]
[{"$nulls":3},"divertimenti",null,"articoli per la casa"]
[{"$nulls":3},"animali domestici",null,"manutenzione"]
[{"$nulls":3},"abbonamenti",null,"migliorie"]
[{"$nulls":3},"vacanze",null,"altro"]
[{"$nulls":3},"varie"]
[]
[{"$nulls":5},"trasporto",null,"salute",null,"assicurazione"]
[{"$nulls":5},"pagamenti veicolo",null,"dottore/dentista",null,"auto"]
[{"$nulls":5},"carburante",null,"medicinali",null,"salute"]
[{"$nulls":5},"bus/taxi/treno",null,"assicurazione medica",null,"casa/affitto"]
[{"$nulls":5},"riparazioni",null,"emergenza",null,"vita"]
[{"$nulls":5},"registrazione/licenza",null,"altro",null,"altro"]
[{"$nulls":5},"altro"]
[]
[]
[{"$nulls":5},"istruzione",null,"beneficenza",null,"risparmi"]
[{"$nulls":5},"ripetizioni",null,"regali acquistati",null,"fondo di emergenza"]
[{"$nulls":5},"libri",null,"donazioni in beneficenza",null,"trasferimenti al fondo risparmi"]
[{"$nulls":5},"lezioni di musica",null,"donazioni religiose",null,"pensione (401k, ira)"]
[{"$nulls":5},"altro",null,"altro",null,"investimenti"]
[{"$nulls":9},"college"]
[{"$nulls":9},"altro"]
[]
[]
[{"$nulls":5},"azioni",null,"divertimenti",null,"animali domestici"]
[{"$nulls":5},"prestiti studenteschi",null,"video/dvd",null,"cibo"]
[{"$nulls":5},"altro prestito",null,"musica",null,"spese mediche"]
[{"$nulls":5},"Carta di credito 1",null,"giochi",null,"giocattoli"]
[{"$nulls":5},"Carta di credito 2",null,"noleggi",null,"altro"]
[{"$nulls":5},"Carta di credito 3",null,"cinema e teatro"]
[{"$nulls":5},"mantenimento figli",null,"concerti e opera"]
[{"$nulls":5},"tasse federali",null,"libri"]
[{"$nulls":5},"tasse sulla proprietà",null,"hobby"]
[{"$nulls":5},"tasse regionali",null,"pellicole e foto"]
[{"$nulls":5},"Spese HOA",null,"sport"]
[{"$nulls":5},"spese legali",null,"divertimenti all'aperto"]
[{"$nulls":5},"altro",null,"giocattoli"]
[{"$nulls":7},"altro"]
[]
[{"$nulls":5},"abbonamenti",null,"vacanze",null,"varie"]
[{"$nulls":5},"giornali",null,"viaggi",null,"spese bancarie"]
[{"$nulls":5},"riviste",null,"alloggio",null,"spese postali"]
[{"$nulls":5},"quote",null,"cibo",null,"altro"]
[{"$nulls":5},"abbonamenti club",null,"autonoleggio"]
[{"$nulls":5},"altro",null,"divertimenti"]
[{"$nulls":7},"altro"]

{"sheet":"dati del grafico","index":3,"n_rows":40,"n_cols":16,"rows_kept":40,"hidden":true}
[null,"*** Questo foglio di lavoro deve restare nascosto ***"]
[]
[]
[null,"Periodo",3]
[]
[null,null,"Gen","Feb","Mar","Apr","Mag","Giu","Lug","Ago","Set","Ott","Nov","Dic","anno","Avg"]
[null,{"$f":"LOWER(Preventivo!B127)","v":" "},{"$f":"SUM(tblCategorieDiSpesa_15[Gen])","v":0},{"$f":"SUM(tblCategorieDiSpesa_15[Feb])","v":0},{"$f":"SUM(tblCategorieDiSpesa_15[Mar])","v":0},{"$f":"SUM(tblCategorieDiSpesa_15[Apr])","v":0},{"$f":"SUM(tblCategorieDiSpesa_15[Mag])","v":0},{"$f":"SUM(tblCategorieDiSpesa_15[Giu])","v":0},{"$f":"SUM(tblCategorieDiSpesa_15[Lug])","v":0},{"$f":"SUM(tblCategorieDiSpesa_15[Ago])","v":0},{"$f":"SUM(tblCategorieDiSpesa_15[Set])","v":0},{"$f":"SUM(tblCategorieDiSpesa_15[Ott])","v":0},{"$f":"SUM(tblCategorieDiSpesa_15[Nov])","v":0},{"$f":"SUM(tblCategorieDiSpesa_15[Dic])","v":0},{"$f":"SUM(tblCategorieDiSpesa_15[anno])","v":0},{"$f":"SUM(tblCategorieDiSpesa_15[avg])","v":0}]
[null,{"$f":"LOWER(Preventivo!B120)","v":" "},{"$f":"SUM(tblCategorieDiSpesa_14[Gen])","v":0},{"$f":"SUM(tblCategorieDiSpesa_14[Feb])","v":0},{"$f":"SUM(tblCategorieDiSpesa_14[Mar])","v":0},{"$f":"SUM(tblCategorieDiSpesa_14[Apr])","v":0},{"$f":"SUM(tblCategorieDiSpesa_14[Mag])","v":0},{"$f":"SUM(tblCategorieDiSpesa_14[Giu])","v":0},{"$f":"SUM(tblCategorieDiSpesa_14[Lug])","v":0},{"$f":"SUM(tblCategorieDiSpesa_14[Ago])","v":0},{"$f":"SUM(tblCategorieDiSpesa_14[Set])","v":0},{"$f":"SUM(tblCategorieDiSpesa_14[Ott])","v":0},{"$f":"SUM(tblCategorieDiSpesa_14[Nov])","v":0},{"$f":"SUM(tblCategorieDiSpesa_14[Dic])","v":0},{"$f":"SUM(tblCategorieDiSpesa_14[anno])","v":0},{"$f":"SUM(tblCategorieDiSpesa_14[avg])","v":0}]
[null,{"$f":"LOWER(Preventivo!B113)","v":" "},{"$f":"SUM(tblCategorieDiSpesa_13[Gen])","v":0},{"$f":"SUM(tblCategorieDiSpesa_13[Feb])","v":0},{"$f":"SUM(tblCategorieDiSpesa_13[Mar])","v":0},{"$f":"SUM(tblCategorieDiSpesa_13[Apr])","v":0},{"$f":"SUM(tblCategorieDiSpesa_13[Mag])","v":0},{"$f":"SUM(tblCategorieDiSpesa_13[Giu])","v":0},{"$f":"SUM(tblCategorieDiSpesa_13[Lug])","v":0},{"$f":"SUM(tblCategorieDiSpesa_13[Ago])","v":0},{"$f":"SUM(tblCategorieDiSpesa_13[Set])","v":0},{"$f":"SUM(tblCategorieDiSpesa_13[Ott])","v":0},{"$f":"SUM(tblCategorieDiSpesa_13[Nov])","v":0},{"$f":"SUM(tblCategorieDiSpesa_13[Dic])","v":0},{"$f":"SUM(tblCategorieDiSpesa_13[anno])","v":0},{"$f":"SUM(tblCategorieDiSpesa_13[avg])","v":0}]
[null,{"$f":"LOWER(Preventivo!B106)","v":" "},{"$f":"SUM(tblCategorieDiSpesa_12[Gen])","v":0},{"$f":"SUM(tblCategorieDiSpesa_12[Feb])","v":0},{"$f":"SUM(tblCategorieDiSpesa_12[Mar])","v":0},{"$f":"SUM(tblCategorieDiSpesa_12[Apr])","v":0},{"$f":"SUM(tblCategorieDiSpesa_12[Mag])","v":0},{"$f":"SUM(tblCategorieDiSpesa_12[Giu])","v":0},{"$f":"SUM(tblCategorieDiSpesa_12[Lug])","v":0},{"$f":"SUM(tblCategorieDiSpesa_12[Ago])","v":0},{"$f":"SUM(tblCategorieDiSpesa_12[Set])","v":0},{"$f":"SUM(tblCategorieDiSpesa_12[Ott])","v":0},{"$f":"SUM(tblCategorieDiSpesa_12[Nov])","v":0},{"$f":"SUM(tblCategorieDiSpesa_12[Dic])","v":0},{"$f":"SUM(tblCategorieDiSpesa_12[anno])","v":0},{"$f":"SUM(tblCategorieDiSpesa_12[avg])","v":0}]
[null,{"$f":"LOWER(Preventivo!B99)","v":" "},{"$f":"SUM(tblCategorieDiSpesa_11[Gen])","v":0},{"$f":"SUM(tblCategorieDiSpesa_11[Feb])","v":0},{"$f":"SUM(tblCategorieDiSpesa_11[Mar])","v":0},{"$f":"SUM(tblCategorieDiSpesa_11[Apr])","v":0},{"$f":"SUM(tblCategorieDiSpesa_11[Mag])","v":0},{"$f":"SUM(tblCategorieDiSpesa_11[Giu])","v":0},{"$f":"SUM(tblCategorieDiSpesa_11[Lug])","v":0},{"$f":"SUM(tblCategorieDiSpesa_11[Ago])","v":0},{"$f":"SUM(tblCategorieDiSpesa_11[Set])","v":0},{"$f":"SUM(tblCategorieDiSpesa_11[Ott])","v":0},{"$f":"SUM(tblCategorieDiSpesa_11[Nov])","v":0},{"$f":"SUM(tblCategorieDiSpesa_11[Dic])","v":0},{"$f":"SUM(tblCategorieDiSpesa_11[anno])","v":0},{"$f":"SUM(tblCategorieDiSpesa_11[avg])","v":0}]
[null,{"$f":"LOWER(Preventivo!B92)","v":"azioni"},{"$f":"SUM(tblCategorieDiSpesa_10[Gen])","v":650},{"$f":"SUM(tblCategorieDiSpesa_10[Feb])","v":200},{"$f":"SUM(tblCategorieDiSpesa_10[Mar])","v":200},{"$f":"SUM(tblCategorieDiSpesa_10[Apr])","v":650},{"$f":"SUM(tblCategorieDiSpesa_10[Mag])","v":200},{"$f":"SUM(tblCategorieDiSpesa_10[Giu])","v":200},{"$f":"SUM(tblCategorieDiSpesa_10[Lug])","v":650},{"$f":"SUM(tblCategorieDiSpesa_10[Ago])","v":200},{"$f":"SUM(tblCategorieDiSpesa_10[Set])","v":200},{"$f":"SUM(tblCategorieDiSpesa_10[Ott])","v":650},{"$f":"SUM(tblCategorieDiSpesa_10[Nov])","v":200},{"$f":"SUM(tblCategorieDiSpesa_10[Dic])","v":200},{"$f":"SUM(tblCategorieDiSpesa_10[anno])","v":{"v":4200,"d":"4,200"}},{"$f":"SUM(tblCategorieDiSpesa_10[avg])","v":350}]
[null,{"$f":"LOWER(Preventivo!B85)","v":"risparmi"},{"$f":"SUM(tblCategorieDiSpesa_09[Gen])","v":800},{"$f":"SUM(tblCategorieDiSpesa_09[Feb])","v":800},{"$f":"SUM(tblCategorieDiSpesa_09[Mar])","v":800},{"$f":"SUM(tblCategorieDiSpesa_09[Apr])","v":800},{"$f":"SUM(tblCategorieDiSpesa_09[Mag])","v":800},{"$f":"SUM(tblCategorieDiSpesa_09[Giu])","v":500},{"$f":"SUM(tblCategorieDiSpesa_09[Lug])","v":500},{"$f":"SUM(tblCategorieDiSpesa_09[Ago])","v":500},{"$f":"SUM(tblCategorieDiSpesa_09[Set])","v":800},{"$f":"SUM(tblCategorieDiSpesa_09[Ott])","v":800},{"$f":"SUM(tblCategorieDiSpesa_09[Nov])","v":800},{"$f":"SUM(tblCategorieDiSpesa_09[Dic])","v":800},{"$f":"SUM(tblCategorieDiSpesa_09[anno])","v":{"v":8700,"d":"8,700"}},{"$f":"SUM(tblCategorieDiSpesa_09[avg])","v":725}]
[null,{"$f":"LOWER(Preventivo!B78)","v":"beneficenza"},{"$f":"SUM(tblCategorieDiSpesa_08[Gen])","v":0},{"$f":"SUM(tblCategorieDiSpesa_08[Feb])","v":100},{"$f":"SUM(tblCategorieDiSpesa_08[Mar])","v":100},{"$f":"SUM(tblCategorieDiSpesa_08[Apr])","v":100},{"$f":"SUM(tblCategorieDiSpesa_08[Mag])","v":100},{"$f":"SUM(tblCategorieDiSpesa_08[Giu])","v":100},{"$f":"SUM(tblCategorieDiSpesa_08[Lug])","v":100},{"$f":"SUM(tblCategorieDiSpesa_08[Ago])","v":100},{"$f":"SUM(tblCategorieDiSpesa_08[Set])","v":100},{"$f":"SUM(tblCategorieDiSpesa_08[Ott])","v":100},{"$f":"SUM(tblCategorieDiSpesa_08[Nov])","v":100},{"$f":"SUM(tblCategorieDiSpesa_08[Dic])","v":100},{"$f":"SUM(tblCategorieDiSpesa_08[anno])","v":{"v":1100,"d":"1,100"}},{"$f":"SUM(tblCategorieDiSpesa_08[avg])","v":{"v":91.66666666666666,"d":"92"}}]
[null,{"$f":"LOWER(Preventivo!B71)","v":"istruzione"},{"$f":"SUM(tblCategorieDiSpesa_07[Gen])","v":0},{"$f":"SUM(tblCategorieDiSpesa_07[Feb])","v":0},{"$f":"SUM(tblCategorieDiSpesa_07[Mar])","v":625},{"$f":"SUM(tblCategorieDiSpesa_07[Apr])","v":0},{"$f":"SUM(tblCategorieDiSpesa_07[Mag])","v":0},{"$f":"SUM(tblCategorieDiSpesa_07[Giu])","v":0},{"$f":"SUM(tblCategorieDiSpesa_07[Lug])","v":0},{"$f":"SUM(tblCategorieDiSpesa_07[Ago])","v":0},{"$f":"SUM(tblCategorieDiSpesa_07[Set])","v":625},{"$f":"SUM(tblCategorieDiSpesa_07[Ott])","v":0},{"$f":"SUM(tblCategorieDiSpesa_07[Nov])","v":0},{"$f":"SUM(tblCategorieDiSpesa_07[Dic])","v":0},{"$f":"SUM(tblCategorieDiSpesa_07[anno])","v":{"v":1250,"d":"1,250"}},{"$f":"SUM(tblCategorieDiSpesa_07[avg])","v":{"v":104.16666666666667,"d":"104"}}]
[null,{"$f":"LOWER(Preventivo!B64)","v":"assicurazione"},{"$f":"SUM(tblCategorieDiSpesa_06[Gen])","v":975},{"$f":"SUM(tblCategorieDiSpesa_06[Feb])","v":975},{"$f":"SUM(tblCategorieDiSpesa_06[Mar])","v":975},{"$f":"SUM(tblCategorieDiSpesa_06[Apr])","v":975},{"$f":"SUM(tblCategorieDiSpesa_06[Mag])","v":975},{"$f":"SUM(tblCategorieDiSpesa_06[Giu])","v":975},{"$f":"SUM(tblCategorieDiSpesa_06[Lug])","v":975},{"$f":"SUM(tblCategorieDiSpesa_06[Ago])","v":975},{"$f":"SUM(tblCategorieDiSpesa_06[Set])","v":975},{"$f":"SUM(tblCategorieDiSpesa_06[Ott])","v":975},{"$f":"SUM(tblCategorieDiSpesa_06[Nov])","v":975},{"$f":"SUM(tblCategorieDiSpesa_06[Dic])","v":975},{"$f":"SUM(tblCategorieDiSpesa_06[anno])","v":{"v":11700,"d":"11,700"}},{"$f":"SUM(tblCategorieDiSpesa_06[avg])","v":975}]
[null,{"$f":"LOWER(Preventivo!B57)","v":"salute"},{"$f":"SUM(tblCategorieDiSpesa_05[Gen])","v":25},{"$f":"SUM(tblCategorieDiSpesa_05[Feb])","v":60},{"$f":"SUM(tblCategorieDiSpesa_05[Mar])","v":175},{"$f":"SUM(tblCategorieDiSpesa_05[Apr])","v":25},{"$f":"SUM(tblCategorieDiSpesa_05[Mag])","v":60},{"$f":"SUM(tblCategorieDiSpesa_05[Giu])","v":60},{"$f":"SUM(tblCategorieDiSpesa_05[Lug])","v":60},{"$f":"SUM(tblCategorieDiSpesa_05[Ago])","v":25},{"$f":"SUM(tblCategorieDiSpesa_05[Set])","v":175},{"$f":"SUM(tblCategorieDiSpesa_05[Ott])","v":60},{"$f":"SUM(tblCategorieDiSpesa_05[Nov])","v":25},{"$f":"SUM(tblCategorieDiSpesa_05[Dic])","v":25},{"$f":"SUM(tblCategorieDiSpesa_05[anno])","v":775},{"$f":"SUM(tblCategorieDiSpesa_05[avg])","v":{"v":64.58333333333334,"d":"65"}}]
[null,{"$f":"LOWER(Preventivo!B48)","v":"trasporto"},{"$f":"SUM(tblCategorieDiSpesa_04[Gen])","v":{"v":1110,"d":"1,110"}},{"$f":"SUM(tblCategorieDiSpesa_04[Feb])","v":{"v":1025,"d":"1,025"}},{"$f":"SUM(tblCategorieDiSpesa_04[Mar])","v":925},{"$f":"SUM(tblCategorieDiSpesa_04[Apr])","v":{"v":1025,"d":"1,025"}},{"$f":"SUM(tblCategorieDiSpesa_04[Mag])","v":{"v":1325,"d":"1,325"}},{"$f":"SUM(tblCategorieDiSpesa_04[Giu])","v":{"v":1200,"d":"1,200"}},{"$f":"SUM(tblCategorieDiSpesa_04[Lug])","v":{"v":1100,"d":"1,100"}},{"$f":"SUM(tblCategorieDiSpesa_04[Ago])","v":{"v":1200,"d":"1,200"}},{"$f":"SUM(tblCategorieDiSpesa_04[Set])","v":{"v":1150,"d":"1,150"}},{"$f":"SUM(tblCategorieDiSpesa_04[Ott])","v":{"v":1025,"d":"1,025"}},{"$f":"SUM(tblCategorieDiSpesa_04[Nov])","v":925},{"$f":"SUM(tblCategorieDiSpesa_04[Dic])","v":925},{"$f":"SUM(tblCategorieDiSpesa_04[anno])","v":{"v":12935,"d":"12,935"}},{"$f":"SUM(tblCategorieDiSpesa_04[avg])","v":{"v":1077.9166666666665,"d":"1,078"}}]
[null,{"$f":"LOWER(Preventivo!B39)","v":"figli"},{"$f":"SUM(tblCategorieDiSpesa_03[Gen])","v":{"v":2373,"d":"2,373"}},{"$f":"SUM(tblCategorieDiSpesa_03[Feb])","v":500},{"$f":"SUM(tblCategorieDiSpesa_03[Mar])","v":350},{"$f":"SUM(tblCategorieDiSpesa_03[Apr])","v":250},{"$f":"SUM(tblCategorieDiSpesa_03[Mag])","v":350},{"$f":"SUM(tblCategorieDiSpesa_03[Giu])","v":450},{"$f":"SUM(tblCategorieDiSpesa_03[Lug])","v":200},{"$f":"SUM(tblCategorieDiSpesa_03[Ago])","v":545},{"$f":"SUM(tblCategorieDiSpesa_03[Set])","v":350},{"$f":"SUM(tblCategorieDiSpesa_03[Ott])","v":350},{"$f":"SUM(tblCategorieDiSpesa_03[Nov])","v":250},{"$f":"SUM(tblCategorieDiSpesa_03[Dic])","v":350},{"$f":"SUM(tblCategorieDiSpesa_03[anno])","v":{"v":6318,"d":"6,318"}},{"$f":"SUM(tblCategorieDiSpesa_03[avg])","v":{"v":526.5,"d":"527"}}]
[null,{"$f":"LOWER(Preventivo!B30)","v":"spese quotidiane"},{"$f":"SUM(tblCategorieDiSpesa_02[Gen])","v":795},{"$f":"SUM(tblCategorieDiSpesa_02[Feb])","v":375},{"$f":"SUM(tblCategorieDiSpesa_02[Mar])","v":550},{"$f":"SUM(tblCategorieDiSpesa_02[Apr])","v":825},{"$f":"SUM(tblCategorieDiSpesa_02[Mag])","v":500},{"$f":"SUM(tblCategorieDiSpesa_02[Giu])","v":450},{"$f":"SUM(tblCategorieDiSpesa_02[Lug])","v":875},{"$f":"SUM(tblCategorieDiSpesa_02[Ago])","v":475},{"$f":"SUM(tblCategorieDiSpesa_02[Set])","v":400},{"$f":"SUM(tblCategorieDiSpesa_02[Ott])","v":825},{"$f":"SUM(tblCategorieDiSpesa_02[Nov])","v":575},{"$f":"SUM(tblCategorieDiSpesa_02[Dic])","v":375},{"$f":"SUM(tblCategorieDiSpesa_02[anno])","v":{"v":7020,"d":"7,020"}},{"$f":"SUM(tblCategorieDiSpesa_02[avg])","v":585}]
[null,{"$f":"LOWER(Preventivo!B21)","v":"casa"},{"$f":"SUM(tblCategorieDiSpesa_01[Gen])","v":{"v":1208,"d":"1,208"}},{"$f":"SUM(tblCategorieDiSpesa_01[Feb])","v":{"v":1208,"d":"1,208"}},{"$f":"SUM(tblCategorieDiSpesa_01[Mar])","v":{"v":1233,"d":"1,233"}},{"$f":"SUM(tblCategorieDiSpesa_01[Apr])","v":{"v":1208,"d":"1,208"}},{"$f":"SUM(tblCategorieDiSpesa_01[Mag])","v":{"v":1158,"d":"1,158"}},{"$f":"SUM(tblCategorieDiSpesa_01[Giu])","v":{"v":1183,"d":"1,183"}},{"$f":"SUM(tblCategorieDiSpesa_01[Lug])","v":{"v":1283,"d":"1,283"}},{"$f":"SUM(tblCategorieDiSpesa_01[Ago])","v":{"v":1333,"d":"1,333"}},{"$f":"SUM(tblCategorieDiSpesa_01[Set])","v":{"v":1208,"d":"1,208"}},{"$f":"SUM(tblCategorieDiSpesa_01[Ott])","v":{"v":1158,"d":"1,158"}},{"$f":"SUM(tblCategorieDiSpesa_01[Nov])","v":{"v":1208,"d":"1,208"}},{"$f":"SUM(tblCategorieDiSpesa_01[Dic])","v":{"v":1208,"d":"1,208"}},{"$f":"SUM(tblCategorieDiSpesa_01[anno])","v":{"v":14596,"d":"14,596"}},{"$f":"SUM(tblCategorieDiSpesa_01[avg])","v":{"v":1216.3333333333335,"d":"1,216"}}]
[]
[]
[]
[]
[null,"Flusso di cassa cumulativo",{"$f":"SUM(Preventivo!$C$8:C$8)","v":{"v":-3714,"d":"-3,714"}},{"$f":"SUM(Preventivo!$C$8:D$8)","v":76},{"$f":"SUM(Preventivo!$C$8:E$8)","v":{"v":-1857,"d":"-1,857"}},{"$f":"SUM(Preventivo!$C$8:F$8)","v":{"v":-3670,"d":"-3,670"}},{"$f":"SUM(Preventivo!$C$8:G$8)","v":-138},{"$f":"SUM(Preventivo!$C$8:H$8)","v":{"v":-3731,"d":"-3,731"}},{"$f":"SUM(Preventivo!$C$8:I$8)","v":{"v":-7974,"d":"-7,974"}},{"$f":"SUM(Preventivo!$C$8:J$8)","v":{"v":-6827,"d":"-6,827"}},{"$f":"SUM(Preventivo!$C$8:K$8)","v":{"v":-8810,"d":"-8,810"}},{"$f":"SUM(Preventivo!$C$8:L$8)","v":{"v":-10753,"d":"-10,753"}},{"$f":"SUM(Preventivo!$C$8:M$8)","v":{"v":-6811,"d":"-6,811"}},{"$f":"SUM(Preventivo!$C$8:N$8)","v":{"v":-7769,"d":"-7,769"}},{"$f":"SUM(Preventivo!$C$8:O$8)","v":{"v":-15538,"d":"-15,538"}}]
[]
[null,"Flusso di cassa annuale positivo",{"$f":"IF(Preventivo!C$8<0,NA(),IF(periodo+2<>COLUMN(Preventivo!C$8),NA(),Preventivo!C$8))","v":{"$error":"#N/A"}},{"$f":"IF(Preventivo!D$8<0,NA(),IF(periodo+2<>COLUMN(Preventivo!D$8),NA(),Preventivo!D$8))","v":{"$error":"#N/A"}},{"$f":"IF(Preventivo!E$8<0,NA(),IF(periodo+2<>COLUMN(Preventivo!E$8),NA(),Preventivo!E$8))","v":{"$error":"#N/A"}},{"$f":"IF(Preventivo!F$8<0,NA(),IF(periodo+2<>COLUMN(Preventivo!F$8),NA(),Preventivo!F$8))","v":{"$error":"#N/A"}},{"$f":"IF(Preventivo!G$8<0,NA(),IF(periodo+2<>COLUMN(Preventivo!G$8),NA(),Preventivo!G$8))","v":{"$error":"#N/A"}},{"$f":"IF(Preventivo!H$8<0,NA(),IF(periodo+2<>COLUMN(Preventivo!H$8),NA(),Preventivo!H$8))","v":{"$error":"#N/A"}},{"$f":"IF(Preventivo!I$8<0,NA(),IF(periodo+2<>COLUMN(Preventivo!I$8),NA(),Preventivo!I$8))","v":{"$error":"#N/A"}},{"$f":"IF(Preventivo!J$8<0,NA(),IF(periodo+2<>COLUMN(Preventivo!J$8),NA(),Preventivo!J$8))","v":{"$error":"#N/A"}},{"$f":"IF(Preventivo!K$8<0,NA(),IF(periodo+2<>COLUMN(Preventivo!K$8),NA(),Preventivo!K$8))","v":{"$error":"#N/A"}},{"$f":"IF(Preventivo!L$8<0,NA(),IF(periodo+2<>COLUMN(Preventivo!L$8),NA(),Preventivo!L$8))","v":{"$error":"#N/A"}},{"$f":"IF(Preventivo!M$8<0,NA(),IF(periodo+2<>COLUMN(Preventivo!M$8),NA(),Preventivo!M$8))","v":{"$error":"#N/A"}},{"$f":"IF(Preventivo!N$8<0,NA(),IF(periodo+2<>COLUMN(Preventivo!N$8),NA(),Preventivo!N$8))","v":{"$error":"#N/A"}},{"$f":"IF(Preventivo!O$8<0,NA(),IF(periodo+2<>COLUMN(Preventivo!O$8),NA(),Preventivo!O$8))","v":{"$error":"#N/A"}}]
[null,"Flusso di cassa annuale negativo",{"$f":"IF(Preventivo!C$8>=0,NA(),IF(periodo+2<>COLUMN(Preventivo!C$8),NA(),Preventivo!C$8))","v":{"$error":"#N/A"}},{"$f":"IF(Preventivo!D$8>=0,NA(),IF(periodo+2<>COLUMN(Preventivo!D$8),NA(),Preventivo!D$8))","v":{"$error":"#N/A"}},{"$f":"IF(Preventivo!E$8>=0,NA(),IF(periodo+2<>COLUMN(Preventivo!E$8),NA(),Preventivo!E$8))","v":{"v":-1933,"d":"-1,933"}},{"$f":"IF(Preventivo!F$8>=0,NA(),IF(periodo+2<>COLUMN(Preventivo!F$8),NA(),Preventivo!F$8))","v":{"$error":"#N/A"}},{"$f":"IF(Preventivo!G$8>=0,NA(),IF(periodo+2<>COLUMN(Preventivo!G$8),NA(),Preventivo!G$8))","v":{"$error":"#N/A"}},{"$f":"IF(Preventivo!H$8>=0,NA(),IF(periodo+2<>COLUMN(Preventivo!H$8),NA(),Preventivo!H$8))","v":{"$error":"#N/A"}},{"$f":"IF(Preventivo!I$8>=0,NA(),IF(periodo+2<>COLUMN(Preventivo!I$8),NA(),Preventivo!I$8))","v":{"$error":"#N/A"}},{"$f":"IF(Preventivo!J$8>=0,NA(),IF(periodo+2<>COLUMN(Preventivo!J$8),NA(),Preventivo!J$8))","v":{"$error":"#N/A"}},{"$f":"IF(Preventivo!K$8>=0,NA(),IF(periodo+2<>COLUMN(Preventivo!K$8),NA(),Preventivo!K$8))","v":{"$error":"#N/A"}},{"$f":"IF(Preventivo!L$8>=0,NA(),IF(periodo+2<>COLUMN(Preventivo!L$8),NA(),Preventivo!L$8))","v":{"$error":"#N/A"}},{"$f":"IF(Preventivo!M$8>=0,NA(),IF(periodo+2<>COLUMN(Preventivo!M$8),NA(),Preventivo!M$8))","v":{"$error":"#N/A"}},{"$f":"IF(Preventivo!N$8>=0,NA(),IF(periodo+2<>COLUMN(Preventivo!N$8),NA(),Preventivo!N$8))","v":{"$error":"#N/A"}},{"$f":"IF(Preventivo!O$8>=0,NA(),IF(periodo+2<>COLUMN(Preventivo!O$8),NA(),Preventivo!O$8))","v":{"$error":"#N/A"}}]
{"$rows_empty":7}
[null,{"$f":"LOWER(visualizza_periodo_lungo)","v":"marzo"}]
[null,{"$f":" \"Reddito \" & visualizza_periodo_lungo","v":"Reddito marzo"},{"$f":"INDEX(Preventivo!$C$6:$P$6,,periodo)","v":{"v":4000,"d":"€ 4,000"}}]
[null,{"$f":" \"Spese \"&visualizza_periodo_lungo&\": \" & TEXT(INDEX(Preventivo!$C$7:$P$7,,periodo),\"[$€-410] #.##0\")","v":"Spese marzo: € 5.933"},{"$f":"INDEX(Preventivo!$C$7:$P$7,,periodo)","v":{"v":5933,"d":"€ 5,933"}}]
[null,{"$f":"\"Flusso di cassa \"&visualizza_periodo_lungo","v":"Flusso di cassa marzo"},{"$f":"ABS(INDEX(Preventivo!$C$8:$P$8,,periodo))","v":{"v":1933,"d":"€ 1,933"}},{"$f":"REPT(\"-\",INDEX(Preventivo!$C$8:$P$8,,periodo)<0)","v":"-"}]